bitfinex-derivatives/quotes_BTCF0:USTF0_20240907
["timestamp","ask_amount","ask_price","bid_price","bid_amount"]
[1725745624183,0.06572451,54047.0,54046.0,0.092518]
[1725745624789,0.06572451,54047.0,54044.0,0.00904671]
[1725745624790,0.092516,54048.0,54047.0,0.092516]
[1725745625093,0.15823938,54048.0,54047.0,0.092516]
[1725745627185,0.06572338,54048.0,54047.0,0.092516]
[1725745628299,0.03573171,54048.0,54047.0,0.092516]
[1725745629287,0.02999167,54049.0,54047.0,0.092516]
[1725745629487,0.02999167,54048.0,54047.0,0.092516]
[1725745629696,0.02999105,54049.0,54048.0,0.047]
[1725745629895,0.02999105,54049.0,54048.0,0.139514]
[1725745632899,0.0299914,54049.0,54048.0,0.139514]
[1725745634495,0.14042416,54049.0,54048.0,0.139514]
[1725745634691,0.0299914,54049.0,54048.0,0.139514]
[1725745637207,0.0299914,54049.0,54048.0,0.15069813]
[1725745637498,0.092511,54050.0,54048.0,0.15069813]
[1725745637692,0.1110218,54049.0,54048.0,0.15069813]
[1725745640892,0.35080456,54050.0,54048.0,0.15069813]
[1725745641099,0.2035348,54049.0,54048.0,0.15069813]
[1725745644502,0.1225044,54049.0,54048.0,0.15069813]
[1725745644903,0.1225053,54049.0,54048.0,0.15069813]
[1725745645909,0.1225053,54049.0,54048.0,0.10369813]
[1725745650011,0.12250526,54049.0,54048.0,0.10369813]
[1725745651906,0.02999226,54049.0,54048.0,0.10369813]
[1725745652114,0.092507,54053.0,54051.0,0.092509]
[1725745652115,0.06572489,54052.0,54051.0,0.092509]
[1725745652309,0.12250036,54052.0,54051.0,0.092509]
[1725745652504,0.20352797,54052.0,54051.0,0.092509]
[1725745653112,0.35082332,54052.0,54051.0,0.092509]
[1725745654414,0.20352797,54052.0,54051.0,0.092509]
[1725745654910,0.20352797,54052.0,54051.0,0.10326145]
[1725745659511,0.12823859,54052.0,54051.0,0.10326145]
[1725745659713,0.092508,54052.0,54051.0,0.10326145]
[1725745661406,0.1224987,54052.0,54051.0,0.10326145]
[1725745661909,0.092508,54052.0,54051.0,0.10326145]
[1725745664610,0.092508,54052.0,54051.0,0.092509]
[1725745667619,0.12249775,54052.0,54051.0,0.092509]
[1725745677727,0.26030639,54052.0,54051.0,0.08214857]
[1725745682826,0.15822954,54052.0,54051.0,0.08214857]
[1725745684429,0.06572154,54052.0,54051.0,0.08214857]
[1725745684625,0.03573179,54052.0,54051.0,0.08214857]
[1725745684930,0.06571945,54052.0,54050.0,0.0489]
[1725745685130,0.02998988,54051.0,54050.0,0.141411]
[1725745685332,0.092505,54054.0,54053.0,0.092506]
[1725745685532,0.15822474,54054.0,54053.0,0.092506]
[1725745689436,0.12249501,54054.0,54053.0,0.092506]
[1725745689636,0.15822483,54054.0,54053.0,0.092506]
[1725745690228,0.12823483,54054.0,54053.0,0.092506]
[1725745690431,0.15822492,54054.0,54053.0,0.092506]
[1725745691032,0.2871601,54054.0,54053.0,0.092506]
[1725745697437,0.26029769,54054.0,54053.0,0.08325541]
[1725745697634,0.2035215,54054.0,54053.0,0.08325541]
[1725745701944,0.35087223,54054.0,54053.0,0.08325541]
[1725745702142,0.2035215,54054.0,54053.0,0.08325541]
[1725745702640,0.35087223,54054.0,54053.0,0.08325541]
[1725745704245,0.2035215,54054.0,54053.0,0.08325541]
[1725745704746,0.28715494,54054.0,54053.0,0.08325541]
[1725745704937,0.092509,54051.0,54050.0,0.141411]
[1725745705139,0.15822892,54051.0,54050.0,0.141411]
[1725745712648,0.20352954,54051.0,54050.0,0.141411]
[1725745713837,0.20353226,54051.0,54050.0,0.141411]
[1725745715549,0.20353245,54051.0,54050.0,0.092511]
[1725745718950,0.35080906,54051.0,54050.0,0.092511]
[1725745719342,0.20353245,54051.0,54050.0,0.092511]
[1725745719858,0.15823334,54051.0,54050.0,0.092511]
[1725745725652,0.15823555,54051.0,54050.0,0.092511]
[1725745727755,0.26031653,54051.0,54050.0,0.092511]
[1725745727956,0.4260861,54051.0,54050.0,0.092511]
[1725745730456,0.26031653,54051.0,54050.0,0.092511]
[1725745731253,0.20353577,54051.0,54050.0,0.092511]
[1725745734962,0.12250212,54051.0,54050.0,0.092511]
[1725745740554,0.12250034,54051.0,54050.0,0.092511]
[1725745741253,0.15823354,54051.0,54050.0,0.092511]
[1725745742757,0.26031604,54051.0,54050.0,0.092511]
[1725745743159,0.20353444,54051.0,54050.0,0.092511]
[1725745745669,0.2603155,54051.0,54050.0,0.092511]
[1725745745859,0.20353444,54051.0,54050.0,0.092511]
[1725745747164,0.28826991,54051.0,54050.0,0.092511]
[1725745747366,0.42608385,54051.0,54050.0,0.092511]
[1725745747572,0.26031428,54051.0,54050.0,0.092511]
[1725745749367,0.26031648,54051.0,54050.0,0.092511]
[1725745749873,0.15823517,54051.0,54050.0,0.092511]
[1725745755172,0.28716988,54051.0,54050.0,0.092511]
[1725745755379,0.15823517,54051.0,54050.0,0.092511]
[1725745764467,0.15823457,54051.0,54050.0,0.092511]
[1725745764869,0.2603159,54051.0,54050.0,0.092511]
[1725745766079,0.38075655,54051.0,54050.0,0.092511]
[1725745766285,0.42605693,54051.0,54050.0,0.092511]
[1725745766779,0.2603159,54051.0,54050.0,0.092511]
[1725745768582,0.15823457,54051.0,54050.0,0.092511]
[1725745769586,0.15823584,54051.0,54050.0,0.092511]
[1725745772792,0.12250225,54051.0,54050.0,0.092511]
[1725745773782,0.092511,54050.0,54049.0,0.049]
[1725745773987,0.20298706,54050.0,54049.0,0.049]
[1725745774193,0.23298031,54050.0,54049.0,0.049]
[1725745774693,0.23298014,54050.0,54049.0,0.049]
[1725745775980,0.23298014,54050.0,54049.0,0.141513]
[1725745777092,0.23298124,54050.0,54049.0,0.141513]
[1725745777886,0.15823754,54050.0,54049.0,0.141513]
[1725745779902,0.20353681,54050.0,54049.0,0.141513]
[1725745780705,0.26031735,54050.0,54049.0,0.141513]
[1725745780903,0.20353681,54050.0,54049.0,0.141513]
[1725745782207,0.21436867,54050.0,54049.0,0.141513]
[1725745783108,0.43687793,54050.0,54049.0,0.141513]
[1725745783301,0.42604607,54050.0,54049.0,0.141513]
[1725745783499,0.20353681,54050.0,54049.0,0.141513]
[1725745787902,0.15823754,54050.0,54049.0,0.141513]
[1725745789618,0.12824374,54050.0,54049.0,0.141513]
[1725745789816,0.15823627,54050.0,54049.0,0.141513]
[1725745790420,0.092513,54049.0,54048.0,0.01088396]
[1725745790710,0.092516,54047.0,54046.0,0.092518]
[1725745790916,0.12250853,54047.0,54046.0,0.092518]
[1725745791319,0.092523,54043.0,54041.0,0.14932517]
[1725745791620,0.092525,54042.0,54041.0,0.10457385]
[1725745791914,0.23299593,54042.0,54041.0,0.10457385]
[1725745792519,0.12251753,54042.0,54041.0,0.0938]
[1725745794122,0.092533,54037.0,54036.0,0.05552517]
[1725745794321,0.092533,54037.0,54032.0,0.01081434]
[1725745794322,0.06573444,54037.0,54032.0,0.01081434]
[1725745794624,0.092542,54032.0,54020.0,0.0499]
[1725745794811,0.192561,54021.0,54019.0,0.001]
[1725745795014,0.192561,54021.0,54016.0,0.092568]
[1725745795015,0.092564,54019.0,54016.0,0.092568]
[1725745795223,0.1,54021.0,54017.0,0.092568]
[1725745795224,0.03000233,54018.0,54017.0,0.092568]
[1725745795517,0.1,54021.0,54015.0,0.00904967]
[1725745795518,0.14007573,54020.0,54015.0,0.00904967]
[1725745795707,0.09172851,54016.0,54015.0,0.10162067]
[1725745795909,0.1100734,54020.0,54015.0,0.00904967]
[1725745796119,0.14008058,54020.0,54019.0,0.092564]
[1725745796322,0.5554,54019.0,53999.0,0.0944]
[1725745796521,0.17322483,54001.0,53999.0,0.0944]
[1725745796819,0.1,54001.0,53999.0,0.0944]
[1725745797227,0.09169963,54001.0,54000.0,0.092597]
[1725745797407,0.09169963,54008.0,54000.0,1.15556]
[1725745797611,0.12888998,54021.0,53999.0,0.0944]
[1725745797612,0.07312267,54006.0,54005.0,0.1]
[1725745797812,0.07312267,54007.0,54005.0,0.692588]
[1725745798013,0.07312267,54007.0,54006.0,0.0479]
[1725745798411,0.07306019,54007.0,54006.0,0.0479]
[1725745798817,0.07306019,54007.0,54005.0,0.092588]
[1725745799216,0.07306019,54006.0,54005.0,0.092588]
[1725745799523,0.17306019,54008.0,54005.0,0.092588]
[1725745799916,0.1,54008.0,54005.0,0.092588]
[1725745800227,0.07306019,54009.0,54008.0,0.092583]
[1725745800516,0.20260655,54018.0,54007.0,0.1]
[1725745800517,1.9e-07,54018.0,54007.0,0.1]
[1725745800726,0.09169963,54025.0,54017.0,0.1]
[1725745800926,0.09169963,54026.0,54025.0,0.092554]
[1725745801224,0.09169963,54028.0,54027.0,0.09255]
[1725745801421,0.20257955,54033.0,54027.0,0.09255]
[1725745801422,0.19169963,54030.0,54027.0,0.09255]
[1725745801826,0.1,54030.0,54027.0,0.09255]
[1725745802012,0.09169963,54032.0,54018.0,0.24]
[1725745802214,0.19169963,54034.0,54022.0,0.1]
[1725745802628,0.19169963,54034.0,54032.0,0.09254]
[1725745802927,0.19169963,54034.0,54022.0,0.1]
[1725745802928,0.092532,54038.0,54033.0,0.14064]
[1725745803123,0.1,54040.0,54035.0,0.092537]
[1725745803425,0.1,54040.0,54036.0,0.092535]
[1725745803810,0.092525,54042.0,54033.0,0.0481]
[1725745804017,0.09252,54046.0,54039.0,0.092529]
[1725745805215,0.28252,54046.0,54041.0,0.092526]
[1725745806623,0.09252,54046.0,54042.0,0.092524]
[1725745807623,0.10052,54046.0,54042.0,0.093524]
[1725745809322,0.10052,54046.0,54043.0,0.092523]
[1725745809922,0.33357048,54045.0,54043.0,0.08317071]
[1725745810127,0.16784235,54044.0,54043.0,0.08317071]
[1725745810332,0.11104961,54044.0,54043.0,0.08317071]
[1725745810519,0.16784084,54044.0,54043.0,0.08317071]
[1725745811727,0.16783771,54044.0,54043.0,0.08317071]
[1725745811919,0.11104961,54044.0,54043.0,0.08317071]
[1725745812123,0.11104961,54044.0,54043.0,0.08417071]
[1725745812324,0.11103845,54044.0,54043.0,0.08417071]
[1725745812523,0.08104229,54044.0,54043.0,0.08417071]
[1725745812719,0.11103845,54044.0,54043.0,0.08417071]
[1725745812919,0.11903845,54044.0,54043.0,0.08417071]
[1725745817819,0.160298,54044.0,54043.0,0.08517071]
[1725745818021,0.10543625,54044.0,54043.0,0.08517071]
[1725745819835,0.04399599,54044.0,54043.0,0.08517071]
[1725745820332,0.13651699,54044.0,54043.0,0.08517071]
[1725745822234,0.13651715,54044.0,54043.0,0.08517071]
[1725745824632,0.13651701,54044.0,54043.0,0.08517071]
[1725745825030,0.106521,54044.0,54043.0,0.08517071]
[1725745825440,0.1097235,54051.0,54044.0,0.092521]
[1725745825753,0.092478,54070.0,54056.0,0.092501]
[1725745825754,0.09150036,54057.0,54056.0,0.092501]
[1725745826033,0.092494,54061.0,54059.0,0.092496]
[1725745826240,0.0299876,54060.0,54059.0,0.092496]
[1725745827736,0.10990065,54060.0,54059.0,0.092496]
[1725745827955,0.13988825,54060.0,54059.0,0.092496]
[1725745828430,0.0299876,54060.0,54059.0,0.092496]
[1725745828838,0.0299876,54060.0,54059.0,0.094496]
[1725745829534,0.092494,54061.0,54060.0,0.092494]
[1725745829731,0.15820728,54061.0,54060.0,0.092494]
[1725745830433,0.12248106,54061.0,54060.0,0.092494]
[1725745831236,0.12248106,54061.0,54060.0,0.093494]
[1725745831842,0.12248106,54061.0,54060.0,0.094494]
[1725745832234,0.15820554,54061.0,54060.0,0.094494]
[1725745832839,0.12248106,54061.0,54060.0,0.094494]
[1725745833032,0.20349743,54061.0,54060.0,0.094494]
[1725745837151,0.20349426,54061.0,54060.0,0.094494]
[1725745837439,0.11100026,54061.0,54060.0,0.094494]
[1725745837638,0.08101442,54061.0,54060.0,0.094494]
[1725745838547,0.146298,54061.0,54060.0,0.094494]
[1725745839040,0.12835648,54062.0,54061.0,0.092492]
[1725745839244,0.06571065,54062.0,54060.0,0.002]
[1725745839447,0.12835648,54063.0,54062.0,0.092491]
[1725745839749,0.19406698,54063.0,54062.0,0.092491]
[1725745840047,0.02998579,54063.0,54062.0,0.092491]
[1725745840636,0.11002078,54066.0,54065.0,0.092485]
[1725745840942,0.23248998,54066.0,54065.0,0.092485]
[1725745842241,0.23248998,54066.0,54065.0,0.093485]
[1725745842441,0.23248998,54066.0,54065.0,0.094485]
[1725745845342,0.1224692,54066.0,54065.0,0.094485]
[1725745845539,0.092484,54066.0,54065.0,0.094485]
[1725745845859,0.1224692,54066.0,54065.0,0.094485]
[1725745847148,0.12246892,54066.0,54065.0,0.094485]
[1725745847551,0.20254048,54066.0,54065.0,0.094485]
[1725745847855,0.2325254,54066.0,54065.0,0.094485]
[1725745848054,0.20254048,54066.0,54065.0,0.094485]
[1725745848553,0.092484,54066.0,54065.0,0.094485]
[1725745851142,0.12820671,54066.0,54065.0,0.094485]
[1725745851456,0.15819083,54066.0,54065.0,0.094485]
[1725745854849,0.06570683,54066.0,54065.0,0.094485]
[1725745855053,0.16775669,54066.0,54065.0,0.002]
[1725745855247,0.16775669,54066.0,54065.0,0.094485]
[1725745858150,0.35129456,54066.0,54065.0,0.094485]
[1725745858347,0.16775669,54066.0,54065.0,0.094485]
[1725745858553,0.35129456,54066.0,54065.0,0.094485]
[1725745860258,0.16775669,54066.0,54065.0,0.094485]
[1725745862055,0.19452776,54066.0,54065.0,0.094485]
[1725745862654,0.0657062,54066.0,54065.0,0.094485]
[1725745863551,0.092483,54067.0,54066.0,0.092484]
[1725745863749,0.17349118,54067.0,54066.0,0.092484]
[1725745863951,0.20347472,54067.0,54066.0,0.092484]
[1725745864363,0.35069936,54067.0,54066.0,0.092484]
[1725745864856,0.20347472,54067.0,54066.0,0.093484]
[1725745865164,0.20347472,54067.0,54066.0,0.094484]
[1725745865353,0.35069936,54067.0,54066.0,0.094484]
[1725745865859,0.20347472,54067.0,54066.0,0.094484]
[1725745866363,0.11099172,54067.0,54066.0,0.094484]
[1725745866554,0.08100818,54067.0,54066.0,0.094484]
[1725745867759,0.14722464,54067.0,54066.0,0.094484]
[1725745867963,0.11098562,54067.0,54066.0,0.094484]
[1725745868654,0.08100373,54067.0,54066.0,0.094484]
[1725745868856,0.14722464,54069.0,54068.0,0.09248]
[1725745869257,0.14722464,54070.0,54069.0,0.092479]
[1725745869460,0.1109854,54070.0,54069.0,0.092479]
[1725745869649,0.08100357,54070.0,54066.0,0.002]
[1725745869855,0.14728323,54070.0,54066.0,0.002]
[1725745870065,0.14728323,54070.0,54069.0,0.092479]
[1725745870266,0.26808117,54070.0,54069.0,0.092479]
[1725745871360,0.16774533,54070.0,54069.0,0.092479]
[1725745871554,0.16774533,54070.0,54069.0,0.093479]
[1725745871961,0.16774533,54070.0,54069.0,0.094479]
[1725745872162,0.33341897,54070.0,54069.0,0.094479]
[1725745872855,0.33341897,54070.0,54069.0,0.186958]
[1725745873056,0.16774533,54070.0,54069.0,0.186958]
[1725745873563,0.20237934,54072.0,54071.0,0.092475]
[1725745873864,0.26808019,54072.0,54071.0,0.192475]
[1725745874171,0.23136728,54072.0,54071.0,0.192475]
[1725745875067,0.33340927,54072.0,54071.0,0.193475]
[1725745875368,0.16774284,54072.0,54071.0,0.194475]
[1725745877867,0.11098377,54072.0,54071.0,0.194475]
[1725745878362,0.06570085,54072.0,54071.0,0.28695]
[1725745878566,0.12878691,54073.0,54072.0,0.092473]
[1725745878760,0.12878691,54073.0,54072.0,0.141673]
[1725745879367,0.06569466,54073.0,54072.0,0.141673]
[1725745879565,0.0357161,54073.0,54072.0,0.141673]
[1725745879771,0.14718504,54077.0,54076.0,0.092467]
[1725745880069,0.11097302,54077.0,54076.0,0.192467]
[1725745880363,0.14714875,54077.0,54076.0,0.192467]
[1725745880757,0.22814328,54077.0,54076.0,0.192467]
[1725745880957,0.22814328,54077.0,54076.0,0.193467]
[1725745881161,0.11097302,54077.0,54076.0,0.193467]
[1725745881367,0.16566643,54078.0,54077.0,0.092465]
[1725745881564,0.21094486,54078.0,54077.0,0.092465]
[1725745881771,0.11097277,54078.0,54077.0,0.092465]
[1725745881959,0.08099435,54078.0,54077.0,0.092465]
[1725745882160,0.08099435,54078.0,54077.0,0.08321851]
[1725745882857,0.08099435,54078.0,54077.0,0.08421851]
[1725745883277,0.11097277,54078.0,54077.0,0.08521851]
[1725745883468,0.08099435,54078.0,54077.0,0.08521851]
[1725745885270,0.16772579,54078.0,54077.0,0.01307688]
[1725745886167,0.16772579,54078.0,54077.0,0.10554188]
[1725745888666,0.08673144,54078.0,54077.0,0.10554188]
[1725745888870,0.09246,54080.0,54079.0,0.092461]
[1725745889061,0.20342893,54080.0,54079.0,0.092461]
[1725745889265,0.2601804,54080.0,54079.0,0.092461]
[1725745890177,0.2601804,54080.0,54079.0,0.093461]
[1725745890359,0.2601804,54080.0,54079.0,0.094461]
[1725745892372,0.28795363,54080.0,54079.0,0.094461]
[1725745892568,0.3447051,54080.0,54079.0,0.094461]
[1725745892772,0.2601804,54080.0,54079.0,0.094461]
[1725745892969,0.42571121,54080.0,54079.0,0.094461]
[1725745893362,0.2601804,54080.0,54079.0,0.094461]
[1725745893762,0.2601807,54080.0,54079.0,0.094461]
[1725745900383,0.2601807,54080.0,54079.0,0.07501491]
[1725745903375,0.2601807,54080.0,54079.0,0.002]
[1725745903571,1.5073617,54080.0,54079.0,0.002]
[1725745903770,1.5073617,54080.0,54048.0,0.092513]
[1725745903771,1.39609154,54080.0,54067.0,0.092481]
[1725745904079,0.09248,54069.0,54067.0,0.092481]
[1725745904377,0.50906622,54068.0,54067.0,0.10331498]
[1725745904681,0.30652451,54068.0,54067.0,0.10331498]
[1725745905179,0.50903035,54068.0,54067.0,0.10331498]
[1725745905577,0.50903035,54068.0,54067.0,0.10431498]
[1725745905774,0.30652451,54068.0,54067.0,0.10431498]
[1725745906382,0.30652451,54068.0,54067.0,0.10531498]
[1725745906983,0.30752451,54068.0,54067.0,0.10531498]
[1725745907178,0.25076488,54068.0,54067.0,0.10531498]
[1725745909087,0.25076718,54068.0,54067.0,0.10531498]
[1725745909592,0.28703067,54068.0,54067.0,0.10531498]
[1725745909783,0.39801785,54068.0,54067.0,0.10531498]
[1725745910285,0.25076718,54068.0,54067.0,0.10531498]
[1725745910981,0.39801785,54068.0,54067.0,0.10531498]
[1725745911171,0.39802611,54068.0,54067.0,0.10531498]
[1725745911376,0.25077544,54068.0,54067.0,0.10531498]
[1725745911777,0.39802611,54068.0,54067.0,0.01283398]
[1725745911981,0.25077544,54068.0,54067.0,0.002]
[1725745912383,0.39789925,54068.0,54067.0,0.002]
[1725745914289,0.25077544,54068.0,54067.0,0.002]
[1725745915282,0.20548776,54068.0,54067.0,0.002]
[1725745920687,0.29796776,54068.0,54067.0,0.002]
[1725745922296,0.3432581,54068.0,54067.0,0.002]
[1725745922689,0.34326192,54068.0,54067.0,0.002]
[1725745924806,0.34326171,54068.0,54067.0,0.002]
[1725745927093,0.34326171,54068.0,54067.0,0.001]
[1725745927289,0.34326171,54068.0,54067.0,0.002]
[1725745930399,0.42679113,54068.0,54067.0,0.002]
[1725745931001,0.2979716,54068.0,54067.0,0.002]
[1725745931199,0.34326291,54068.0,54067.0,0.002]
[1725745932408,0.49048523,54068.0,54067.0,0.002]
[1725745932904,0.49048631,54068.0,54067.0,0.002]
[1725745933296,0.34326399,54068.0,54067.0,0.002]
[1725745933711,0.43574399,54068.0,54067.0,0.002]
[1725745934096,0.49251707,54068.0,54067.0,0.002]
[1725745934416,0.43574399,54068.0,54067.0,0.002]
[1725745936208,0.092496,54059.0,54058.0,0.0494]
[1725745936406,0.15820882,54059.0,54058.0,0.0494]
[1725745937510,0.28712292,54059.0,54058.0,0.0494]
[1725745937700,0.28812292,54059.0,54058.0,0.0504]
[1725745937896,0.38061892,54059.0,54058.0,0.0504]
[1725745938301,0.25170482,54059.0,54058.0,0.0514]
[1725745938501,0.25270482,54059.0,54058.0,0.0514]
[1725745939105,0.38161892,54059.0,54058.0,0.0514]
[1725745940909,0.38161892,54059.0,54058.0,0.002]
[1725745942510,0.38161892,54059.0,54051.0,0.1]
[1725745942511,0.092509,54051.0,54046.0,0.092516]
[1725745942709,0.185018,54051.0,54044.0,0.0963]
[1725745942901,0.25073814,54051.0,54044.0,0.0963]
[1725745943107,0.29604047,54051.0,54044.0,0.188821]
[1725745943415,0.37955667,54051.0,54044.0,0.188821]
[1725745943910,0.38155667,54051.0,54044.0,0.188821]
[1725745944419,0.06872014,54051.0,54044.0,0.0476]
[1725745944608,0.20290532,54045.0,54044.0,0.0476]
[1725745944913,0.12251445,54045.0,54044.0,0.0476]
[1725745945411,0.15825321,54045.0,54044.0,0.05880572]
[1725745946010,0.15825321,54045.0,54044.0,0.01120572]
[1725745946212,0.15825321,54045.0,54044.0,0.002]
[1725745946711,0.15825321,54045.0,54044.0,0.003]
[1725745949719,0.16931686,54045.0,54044.0,0.003]
[1725745950720,0.26183686,54045.0,54044.0,0.003]
[1725745952420,0.2879667,54045.0,54044.0,0.003]
[1725745954807,0.19610365,54045.0,54044.0,0.003]
[1725745960322,0.22610115,54045.0,54044.0,0.003]
[1725745960626,0.23276645,54045.0,54044.0,0.003]
[1725745960830,0.1225175,54045.0,54044.0,0.003]
[1725745961919,0.1225175,54045.0,54044.0,0.095521]
[1725745962833,0.12251578,54045.0,54044.0,0.095521]
[1725745964130,0.02999578,54045.0,54044.0,0.095521]
[1725745964434,0.11024895,54045.0,54044.0,0.095521]
[1725745965435,0.02999578,54045.0,54044.0,0.095521]
[1725745969345,0.092518,54046.0,54045.0,0.09252]
[1725745969346,0.23291098,54046.0,54045.0,0.09252]
[1725745969553,0.23291098,54046.0,54045.0,0.14042]
[1725745970049,0.12251298,54046.0,54045.0,0.14042]
[1725745970554,0.23291098,54046.0,54045.0,0.14042]
[1725745971340,0.12251298,54046.0,54045.0,0.14042]
[1725745971941,0.2030323,54046.0,54045.0,0.14042]
[1725745972146,0.2030323,54046.0,54045.0,0.14142]
[1725745972147,0.23302728,54046.0,54045.0,0.14142]
[1725745972454,0.12251298,54046.0,54045.0,0.14142]
[1725745972854,0.12251205,54046.0,54045.0,0.14142]
[1725745974344,0.02999405,54046.0,54045.0,0.14142]
[1725745974650,0.029994,54046.0,54045.0,0.0489]
[1725745974954,0.02999394,54048.0,54045.0,0.0489]
[1725745975155,0.11055795,54046.0,54045.0,0.14142]
[1725745975458,0.1473304,54048.0,54047.0,0.092516]
[1725745975652,0.25835915,54048.0,54047.0,0.092516]
[1725745976856,0.11202875,54048.0,54047.0,0.092516]
[1725745977552,0.25935915,54048.0,54047.0,0.092516]
[1725745977756,0.25936256,54048.0,54047.0,0.092516]
[1725745977955,0.26136256,54048.0,54047.0,0.092516]
[1725745978458,0.11403216,54048.0,54047.0,0.092516]
[1725745979952,0.092523,54044.0,54043.0,0.092522]
[1725745980157,0.1582525,54044.0,54043.0,0.092522]
[1725745981457,0.092523,54043.0,54042.0,0.05793957]
[1725745981654,0.15825115,54043.0,54042.0,0.05793957]
[1725745981854,0.28421898,54043.0,54042.0,0.05793957]
[1725745982064,0.28021898,54043.0,54042.0,0.05793957]
[1725745982460,0.11551685,54043.0,54042.0,0.05793957]
[1725745982658,0.11551685,54043.0,54042.0,0.06293957]
[1725745983061,0.11551685,54043.0,54042.0,0.01603957]
[1725745983464,0.11551685,54043.0,54042.0,0.02003957]
[1725745986462,0.11551891,54043.0,54042.0,0.02003957]
[1725745990668,0.15125581,54043.0,54042.0,0.02003957]
[1725745993864,0.24377881,54043.0,54042.0,0.009]
[1725745996579,0.24377968,54043.0,54042.0,0.009]
[1725745997466,0.20804237,54043.0,54042.0,0.009]
[1725745998373,0.11551937,54043.0,54042.0,0.009]
[1725746001174,0.11551896,54043.0,54042.0,0.009]
[1725746001380,0.085523,54043.0,54042.0,0.009]
[1725746002775,0.20298831,54046.0,54045.0,0.09252]
[1725746002977,0.23298388,54046.0,54045.0,0.09252]
[1725746005077,0.23298388,54046.0,54045.0,0.09352]
[1725746006377,0.12251424,54046.0,54045.0,0.09352]
[1725746006583,0.23303405,54046.0,54045.0,0.09352]
[1725746007675,0.23303405,54046.0,54045.0,0.001]
[1725746008067,0.23303405,54046.0,54045.0,0.09352]
[1725746008273,0.23303405,54046.0,54045.0,0.001]
[1725746009785,0.12251424,54046.0,54045.0,0.001]
[1725746011476,0.20308057,54046.0,54045.0,0.001]
[1725746011677,0.23307581,54046.0,54045.0,0.001]
[1725746012587,0.2398494,54046.0,54045.0,0.001]
[1725746012779,0.3055804,54046.0,54045.0,0.001]
[1725746013081,0.20355358,54046.0,54045.0,0.001]
[1725746016278,0.092519,54046.0,54045.0,0.001]
[1725746016476,0.12251498,54046.0,54045.0,0.001]
[1725746016683,0.20355679,54046.0,54045.0,0.001]
[1725746018474,0.26034377,54046.0,54045.0,0.001]
[1725746018679,0.092521,54044.0,54043.0,0.092523]
[1725746018989,0.24001142,54044.0,54043.0,0.092523]
[1725746019189,0.35104921,54044.0,54043.0,0.092523]
[1725746019874,0.35304921,54044.0,54043.0,0.092523]
[1725746020481,0.12451682,54044.0,54043.0,0.092523]
[1725746020680,0.12651682,54044.0,54043.0,0.092523]
[1725746021374,0.12651687,54044.0,54043.0,0.092523]
[1725746026587,0.12651702,54044.0,54043.0,0.092523]
[1725746027486,0.23713512,54044.0,54043.0,0.092523]
[1725746029188,0.12651702,54044.0,54043.0,0.092523]
[1725746035791,0.2075584,54044.0,54043.0,0.092523]
[1725746036588,0.2075582,54044.0,54043.0,0.092523]
[1725746036992,0.1150372,54044.0,54043.0,0.092523]
[1725746040903,0.11503446,54044.0,54043.0,0.092523]
[1725746042701,0.03399508,54044.0,54043.0,0.092523]
[1725746044206,0.11466272,54044.0,54043.0,0.185046]
[1725746044902,0.1446578,54044.0,54043.0,0.185046]
[1725746045097,0.14465612,54044.0,54043.0,0.185046]
[1725746047204,0.0339934,54044.0,54043.0,0.185046]
[1725746048318,0.14465612,54044.0,54043.0,0.185046]
[1725746050814,0.18156636,54044.0,54043.0,0.185046]
[1725746051204,0.26260082,54044.0,54043.0,0.185046]
[1725746051406,0.11502786,54044.0,54043.0,0.185046]
[1725746051608,0.26260082,54044.0,54043.0,0.185046]
[1725746052010,0.11502786,54044.0,54043.0,0.185046]
[1725746052213,0.19992012,54044.0,54043.0,0.285046]
[1725746052399,0.1718094,54044.0,54043.0,0.285046]
[1725746052711,0.11502786,54044.0,54043.0,0.285046]
[1725746052915,0.11502786,54044.0,54043.0,1.440166]
[1725746053212,0.06972701,54044.0,54043.0,1.440166]
[1725746053614,0.06972701,54044.0,54043.0,0.840166]
[1725746054214,0.06972701,54044.0,54043.0,1.440166]
[1725746054514,0.06972701,54044.0,54043.0,0.840166]
[1725746054706,0.06972701,54044.0,54043.0,1.440166]
[1725746054902,0.06972701,54044.0,54043.0,0.840166]
[1725746055101,0.16307927,54044.0,54043.0,1.440166]
[1725746055309,0.06972397,54044.0,54043.0,1.440166]
[1725746056607,0.1988113,54044.0,54043.0,1.440166]
[1725746057009,0.1988113,54044.0,54043.0,0.840166]
[1725746057519,0.06972397,54044.0,54043.0,0.840166]
[1725746057709,0.03399194,54044.0,54043.0,0.840166]
[1725746058418,0.03399194,54044.0,54043.0,1.440166]
[1725746059908,0.03399194,54044.0,54043.0,1.340166]
[1725746060113,0.004,54044.0,54043.0,1.340166]
[1725746060306,0.09616257,54044.0,54043.0,1.440166]
[1725746060709,0.004,54044.0,54043.0,1.440166]
[1725746061017,0.0961632,54044.0,54043.0,1.440166]
[1725746061911,0.0961632,54044.0,54043.0,0.840166]
[1725746062719,0.004,54044.0,54043.0,0.840166]
[1725746063119,0.004,54044.0,54043.0,1.440166]
[1725746063318,0.004,54044.0,54043.0,0.840166]
[1725746063507,0.004,54044.0,54043.0,1.440166]
[1725746063712,0.004,54044.0,54043.0,0.840166]
[1725746064416,0.004,54044.0,54043.0,1.440166]
[1725746064621,0.004,54044.0,54043.0,0.840166]
[1725746064824,0.004,54044.0,54043.0,1.440166]
[1725746064825,0.09616799,54044.0,54043.0,1.440166]
[1725746065015,0.004,54044.0,54043.0,0.840166]
[1725746065215,0.09616621,54044.0,54043.0,1.440166]
[1725746065613,0.06972325,54044.0,54043.0,0.840166]
[1725746068619,0.06972325,54044.0,54043.0,0.285046]
[1725746070113,0.06972176,54044.0,54043.0,0.285046]
[1725746071323,0.06972176,54044.0,54043.0,0.740166]
[1725746071527,0.06972176,54044.0,54043.0,0.840166]
[1725746071719,0.06972176,54044.0,54043.0,0.285046]
[1725746071919,0.19876883,54044.0,54043.0,0.285046]
[1725746072616,0.004,54044.0,54043.0,0.285046]
[1725746072812,0.004,54044.0,54043.0,0.840166]
[1725746073020,0.004,54044.0,54043.0,0.285046]